Workbook

Sheet Erwärmung
A1: Hersteller:
B2: Mustermann
B3: in Musterhausen
A7: Bauartnachweis der zulässigen Erwärmung nach DIN EN 61 439-1 Abschnitt 10.10
A8: Kunde: | B8: Theo Muster | F8: Kom. Nr.:
F9: Pos. Nr.: 01.01.01.
A11: Max. Schrankinnentemperatur | D11: 55°C
A12: Max. Umgebungstemperatur | D12: 35°C
A13: Temperaturdifferenz zur Wärmeableitung | D13: 20K | F13: = bitte diese Punkte manuel ausfüllen.
A14: 1. installierte Verlustleistung der Einbaugeräte | K14: 3 Phasig
B15: Pos. | C15: Anzahl | D15: Hersteller | E15: Typ | F15: Beschreibung | G15: In / A | H15: Derating | I15: InC / A | J15: Tab 101 | K15: Pv / Watt | L15: Σ Pv / Watt
A16: Einspeisung | B16: E 1 | C16: 1 | D16: ABN | E16: 250A | F16: Leistungsschalter | G16: 250 | H16: 0.8 | I16: =G16*H16 -> 200 | J16: 1 | K16: 56.25 | L16: =IFERROR((K16*(I16/G16)^2)*C16*H16*J16,"0") -> 28.8
A17: Abgänge | B17: A 1 | C17: 3 | D17: ABN | E17: NH1 | F17: Sicherungsschaltleiste | G17: 250 | H17: 0.8 | I17: =G17*H17 -> 200 | J17: 0.9 | K17: 54 | L17: =IFERROR((K17*(I17/G17)^2)*C17*H17*J17,"0") -> 74.6496
B18: A 2 | C18: 12 | D18: Doepke | E18: B16A | F18: Leitungsschutzschalter 3-pol. | G18: 16 | H18: 0.8 | I18: 12.8 | J18: 0.6 | K18: 6.3 | L18: 23.22432
B19: A 3 | C19: 24 | D19: Doepke | E19: B16A | F19: Leitungsschutzschalter 1-pol. | G19: 16 | H19: 0.8 | I19: 12.8 | J19: 0.6 | K19: 2.1 | L19: 15.48288
B20: A 4 | I20: 0 | L20: 0
B21: A 5 | I21: 0 | L21: 0
B22: A 6 | I22: 0 | L22: 0
B23: A 7 | I23: 0 | L23: 0
B24: A 8 | I24: 0 | L24: 0
F25: Summe installierte Verlustleistung der Einbaugeräte (W) | L25: =SUM(L16:L24) -> 142.1568
A27: 2. installierte Verlustleistung der Sammelschienen - 3 Phasig
A28: Pos. | B28: Länge | C28: Beschreibung | H28: Material | K28: Pv/ Watt pro m | L28: Σ Pv/ Watt
A29: 1 | B29: 0.75 | C29: Sammelschiene 250A | H29: CU | K29: 60.16 | L29: =B29*K29 -> 45.12
A30: 2 | C30: Sammelschiene 400A | H30: CU | L30: =B30*K30 -> 0
A31: 3 | C31: Sammelschiene 630A | H31: CU | L31: 0
F32: Summe installierte Verlustleistung der Sammelschienen (W) | L32: =SUM(L29:L31) -> 45.12
A34: 3. abstrahlbare Verlustleistung der Gehäuse / Schränke
A35: ursprünglicher Hersteller: | G35: System:
A36: Pos. | B36: Anzahl | C36: Beschreibung | H36: Abmessungen | K36: Pab/ Watt | L36: Σ Pab/ Watt
A37: 1 | B37: 1 | C37: SF312 Systemgehäuse, IP43, SK 2, Einzelgehäuse | H37: 800x1980x210 | K37: 250 | L37: =K37*B37 -> 250
A38: 2 | L38: 0
A39: 3 | L39: 0
A40: 4 | L40: 0
A41: 5 | L41: 0
A42: 6 | L42: 0
F43: Summe abstrahlbare Verlustleistung der Gehäuse / Schränke (W) | L43: =SUM(L37:L42) -> 250
A45: 4. Berechnung
A47: Pos.
A48: 1. | B48: Summe installierte Verlustleistung der Geräte | H48: =L25 -> 142.1568
A49: 2. | B49: Summe installierte Verlustleistung der Sammelschienen | H49: =L32 -> 45.12
B50: Anteilige Verdrahtung von Pos. 1 | H50: =(H48+H49)*0.2 -> 37.45536
B51: 15 | C51: % Reserve für zusätzlicher Geräte | H51: =SUM(H48:H50)*B51/100 -> 33.709824
F52: Zwischensumme | H52: =SUM(H48:H51) -> 258.441984 | I52: Watt
A53: 3. | B53: Summe abstrahlbare Verlustleistung der Gehäuse / Schränke | H53: =L43 -> 250
B54: Differenz zwischen abstrahlbarer und installierter Verlustleistung | H54: =H53-H52 -> -8.441984 | I54: Watt
A56: Bei negativer Differenz ist durch Belüftung oder durch größere Gehäuse die abstrahlbare Verlustleistung zu vergrößern.
A57: Eine weitere Maßnahme kann die Verringerung des RDF sein.
H58: abstrahlbare Verlustleistung
A59: Berechnung reduzierter RDF: | F59: RDF = | H59: installierte Verlustleistung
A61: Hinweise: | F61: ABN Festlegung:
G62: errechneter Hersteller-RDF = | H62: =SQRT(H53/H52) -> 0.9835319469
B64: Bemessungsstrom | F64: Die Anlage ist mit einem RDF von 0,9 zu betreiben.
B66: DERATING: Nach Angaben des Herstellers, jedoch mindestens 0,8 nach DIN EN 61 439 Teil 1.
B68: Der Strom InC definiert für die Einspeisung den Wert InA .
B70: Angaben für Stahlblechverteiler ebenso wie für Isolierstoffverteiler in Kastenbauform möglich.
B72: Abstrahlbare Verlustleistung laut ursprünglichem Hersteller.
B74: Auswahl aus Tabelle 101 DIN EN 61439-2
B77: ABN GmbH, Daimlerstrasse 10-12, D-74196 Neuenstadt am Kocher, www.abn-elektro.de

Sheet Tabelle 101 (DIN EN 61439-2)
A1: Tabelle Stromkreis - Belastungsfaktor
B3: Anzahl Stromkreise | C3: angenommener Belastungsfaktor
B4: 1 | C4: 1
B5: 2 | C5: 0.9
B6: 3 | C6: 0.9
B7: 4 | C7: 0.8
B8: 5 | C8: 0.8
B9: 6 | C9: 0.7
B10: 7 | C10: 0.7
B11: 8 | C11: 0.7
B12: 9 | C12: 0.7
B13: 10 | C13: 0.6
B14: >10 | C14: 0.6
A16: Erläuterung: | B16: Durch gegenseitige Erwärmung der Sicherungaautomaten muss eine Leistungsreduzierung in Form eines Belastungsfaktors bestimmt werden.

Sheet Pab_Gehäuse
A1: Tabelle Gehäuse-System:
A3: Schrankart | B3: Hersteller | C3: Schutzart | D3: Typ | E3: Artikelnummer | F3: abstrahlbare Verlustleistung Pab / Pzul. in Watt (bei dT = 20K) Wandaufbau | G3: Bemessungsstrom In / A
A5: Kleinverteiler / Installationsverteiler
A6: Unterputz-Verteiler, 90mm, SK II | B6: ABN | C6: IP30 | D6: AP12UP | F6: 10 | G6: 63
D7: AP24UP | F7: 11.5 | G7: 63
D8: AP36UP | F8: 14.5 | G8: 63
D9: AP48UP | F9: 16.5 | G9: 63
A11: Hohlwand-Verteiler, 90mm, SK II | B11: ABN | C11: IP30 | D11: AP12HW | F11: 10 | G11: 63
D12: AP24HW | F12: 11.5 | G12: 63
D13: AP36HW | F13: 14.5 | G13: 63
D14: AP48HW | F14: 16.5 | G14: 63
A16: Kleinverteiler / Multimediaverteiler
A17: Unterputz-/Hohlwand-Verteiler, 90mm, SK II | B17: ABN | C17: IP30 | D17: AP36TK | F17: 14.5 | G17: 63
D18: AP48TK | F18: 16.5 | G18: 63
A20: Kleinverteiler / Installationsverteiler
A21: Aufputz-Verteiler, 106mm, SK II | B21: ABN | C21: IP30 | D21: A12A | F21: 12.5 | G21: 63
D22: A24A | F22: 15 | G22: 63
D23: A36A | F23: 17 | G23: 63
D24: A48A | F24: 20.5 | G24: 63
A26: Installations-Flachverteiler
A27: UP/HW-Verteiler, 110mm tief in kompletter Lieferform, SK II
A28: Baureihe UK.. als Bedarfsschrank, komplett | B28: ABN | C28: IP30 | D28: UK13 | F28: 31 | G28: 250
D29: UK23 | F29: 50 | G29: 250
D30: UK33 | F30: 87 | G30: 250
D32: UK14 | F32: 36 | G32: 250
D33: UK24 | F33: 60 | G33: 250
D34: UK34 | F34: 80 | G34: 250
D36: UK15 | F36: 43 | G36: 250
D37: UK25 | F37: 69 | G37: 250
D38: UK35 | F38: 93 | G38: 250
D39: UK45 | F39: 120 | G39: 250
D41: UK16 | F41: 50 | G41: 250
D42: UK26 | F42: 80 | G42: 250
D43: UK36 | F43: 110 | G43: 250
D44: UK46 | F44: 137 | G44: 250
D46: UK17 | F46: 57 | G46: 250
D47: UK27 | F47: 89 | G47: 250
D48: UK37 | F48: 125 | G48: 250
A50: UP/HW-Verteiler, 110mm tief in modularer Lieferform, SK II
A51: Baureihe UL.. in modularer Lieferform - Leergehäuse | B51: ABN | C51: IP30 | D51: UL13X | F51: 31 | G51: 125
D52: UL23X | F52: 50 | G52: 125
D53: UL33X | F53: 87 | G53: 125
D55: UL14X | F55: 36 | G55: 125
D56: UL24X | F56: 60 | G56: 125
D57: UL34X | F57: 80 | G57: 125
D59: UL15X | F59: 43 | G59: 125
D60: UL25X | F60: 69 | G60: 125
D61: UL35X | F61: 93 | G61: 125
D62: UL45X | F62: 120 | G62: 125
D64: UL16X | F64: 50 | G64: 125
D65: UL26X | F65: 80 | G65: 125
D66: UL36X | F66: 110 | G66: 125
D67: UL46X | F67: 137 | G67: 125
D69: UL17X | F69: 57 | G69: 125
D70: UL27X | F70: 89 | G70: 125
D71: UL37X | F71: 125 | G71: 125
A73: AP-Verteiler, 160mm tief in kompletter Lieferform, SK II
A74: Baureihe MK.. mit Komplettfeld für Reiheneinbaugeräte | B74: ABN | C74: IP30 | D74: MK13 | F74: 31 | G74: 250
D75: MK23 | F75: 48 | G75: 250
D76: MK33 | F76: 71 | G76: 250
D77: MK43 | F77: 86 | G77: 250
D79: MK14 | F79: 36 | G79: 250
D80: MK24 | F80: 59 | G80: 250
D81: MK34 | F81: 80 | G81: 250
D82: MK44 | F82: 103 | G82: 250
D84: MK15 | F84: 44 | G84: 250
D85: MK25 | F85: 68 | G85: 250
D86: MK35 | F86: 91 | G86: 250
D87: MK45 | F87: 113 | G87: 250
D89: MK16 | F89: 51 | G89: 250
D90: MK26 | F90: 77 | G90: 250
D91: MK36 | F91: 100 | G91: 250
D92: MK46 | F92: 136 | G92: 250
D94: MK17 | F94: 57 | G94: 250
D95: MK27 | F95: 83 | G95: 250
D96: MK37 | F96: 109 | G96: 250
D97: MK47 | F97: 159 | G97: 250
A99: Baureihe MK..RK mit Komplettfeld für Reihenklemmen und | B99: ABN | C99: IP30 | D99: MK14RK | F99: 36 | G99: 250
A100: Reiheneinbaugeräte, SK II | D100: MK24RK | F100: 59 | G100: 250
D102: MK15RK | F102: 44 | G102: 250
D103: MK25RK | F103: 68 | G103: 250
D104: MK35RK | F104: 91 | G104: 250
D105: MK45RK | F105: 113 | G105: 250
D107: MK16RK | F107: 51 | G107: 250
D108: MK26RK | F108: 77 | G108: 250
D109: MK36RK | F109: 100 | G109: 250
D110: MK46RK | F110: 136 | G110: 250
D112: MK17RK | F112: 57 | G112: 250
D113: MK27RK | F113: 83 | G113: 250
D114: MK37RK | F114: 109 | G114: 250
D115: MK47RK | F115: 159 | G115: 250
A117: AP-Verteiler, 160mm tief in modularer Lieferform, SK II | B117: ABN | C117: IP30 | D117: ML13 | F117: 31 | G117: 250
A118: sprich: Leergehäuse | D118: ML23 | F118: 48 | G118: 250
D119: ML33 | F119: 71 | G119: 250
D120: ML43 | F120: 86 | G120: 250
D122: ML14 | F122: 36 | G122: 250
D123: ML24 | F123: 59 | G123: 250
D124: ML34 | F124: 80 | G124: 250
D125: ML44 | F125: 103 | G125: 250
D127: ML15 | F127: 44 | G127: 250
D128: ML25 | F128: 68 | G128: 250
D129: ML35 | F129: 91 | G129: 250
D130: ML45 | F130: 113 | G130: 250
D132: ML16 | F132: 51 | G132: 250
D133: ML26 | F133: 67 | G133: 250
D134: ML36 | F134: 100 | G134: 250
D135: ML46 | F135: 136 | G135: 250
D137: ML17 | F137: 57 | G137: 250
D138: ML27 | F138: 83 | G138: 250
D139: ML37 | F139: 109 | G139: 250
D140: ML47 | F140: 159 | G140: 250
A142: AP-Verteiler, 160mm tief in modularer Lieferform mit Sichtüre, SK II | B142: ABN | C142: IP30 | D142: ML14TS | F142: 36 | G142: 250
A143: sprich: Leergehäuse | D143: ML24TS | F143: 59 | G143: 250
D145: ML15TS | F145: 44 | G145: 250
D146: ML25TS | F146: 68 | G146: 250
D148: ML16TS | F148: 51 | G148: 250
D149: ML26TS | F149: 67 | G149: 250
D151: ML17TS | F151: 57 | G151: 250
D152: ML27TS | F152: 83 | G152: 250
A154: Systemgehäuse
A155: Wandgehäuse Baureihe SV, 210mm tief, SK I | B155: ABN | C155: IP43 | D155: SV13 | F155: 31 | G155: 400
D156: SV23 | F156: 49 | G156: 400
D157: SV33 | F157: 87 | G157: 400
D158: SV43 | F158: 91 | G158: 400
D159: SV53 | F159: 96 | G159: 400
D161: SV14 | F161: 38 | G161: 400
D162: SV24 | F162: 61 | G162: 400
D163: SV34 | F163: 97 | G163: 400
D164: SV44 | F164: 112 | G164: 400
D165: SV54 | F165: 132 | G165: 400
D167: SV15 | F167: 45 | G167: 400
D168: SV25 | F168: 73 | G168: 400
D169: SV35 | F169: 107 | G169: 400
D170: SV45 | F170: 133 | G170: 400
D171: SV55 | F171: 168 | G171: 400
D173: SV16 | F173: 52 | G173: 400
D174: SV26 | F174: 85 | G174: 400
D175: SV36 | F175: 116 | G175: 400
D176: SV46 | F176: 154 | G176: 400
D177: SV56 | F177: 204 | G177: 400
D179: SV17 | F179: 59 | G179: 400
D180: SV27 | F180: 97 | G180: 400
D181: SV37 | F181: 130 | G181: 400
D182: SV47 | F182: 178 | G182: 400
D183: SV57 | F183: 237 | G183: 400
D185: SV18 | F185: 66 | G185: 400
D186: SV28 | F186: 107 | G186: 400
D187: SV38 | F187: 147 | G187: 400
D188: SV48 | F188: 206 | G188: 400
D189: SV58 | F189: 272 | G189: 400
D191: SV19 | F191: 73 | G191: 400
D192: SV29 | F192: 114 | G192: 400
D193: SV39 | F193: 199 | G193: 400
D194: SV49 | F194: 234 | G194: 400
D195: SV59 | F195: 308 | G195: 400
A197: Wandgehäuse Baureihe S, 210mm tief, SK II | B197: ABN | C197: IP43 | D197: S13 | F197: 31 | G197: 400
D198: S23 | F198: 49 | G198: 400
D199: S33 | F199: 87 | G199: 400
D200: S43 | F200: 91 | G200: 400
D201: S53 | F201: 96 | G201: 400
D203: S14 | F203: 38 | G203: 400
D204: S24 | F204: 61 | G204: 400
D205: S34 | F205: 97 | G205: 400
D206: S44 | F206: 112 | G206: 400
D207: S54 | F207: 132 | G207: 400
D209: S15 | F209: 45 | G209: 400
D210: S25 | F210: 73 | G210: 400
D211: S35 | F211: 107 | G211: 400
D212: S45 | F212: 133 | G212: 400
D213: S55 | F213: 168 | G213: 400
D215: S16 | F215: 52 | G215: 400
D216: S26 | F216: 85 | G216: 400
D217: S36 | F217: 116 | G217: 400
D218: S46 | F218: 154 | G218: 400
D219: S56 | F219: 204 | G219: 400
D221: S17 | F221: 59 | G221: 400
D222: S27 | F222: 97 | G222: 400
D223: S37 | F223: 130 | G223: 400
D224: S47 | F224: 178 | G224: 400
D225: S57 | F225: 237 | G225: 400
D227: S18 | F227: 66 | G227: 400
D228: S28 | F228: 107 | G228: 400
D229: S38 | F229: 147 | G229: 400
D230: S48 | F230: 206 | G230: 400
D231: S58 | F231: 272 | G231: 400
D233: S19 | F233: 73 | G233: 400
D234: S29 | F234: 114 | G234: 400
D235: S39 | F235: 199 | G235: 400
D236: S49 | F236: 234 | G236: 400
D237: S59 | F237: 308 | G237: 400
A239: Wandgehäuse Baureihe SE, 225mm tief, SK I | B239: ABN | C239: IP54 | D239: SE13 | F239: 33 | G239: 400
D240: SE23 | F240: 52 | G240: 400
D241: SE33 | F241: 90 | G241: 400
D242: SE43 | F242: 94 | G242: 400
D243: SE53 | F243: 99 | G243: 400
D245: SE14 | F245: 38 | G245: 400
D246: SE24 | F246: 61 | G246: 400
D247: SE34 | F247: 97 | G247: 400
D248: SE44 | F248: 112 | G248: 400
D249: SE54 | F249: 128 | G249: 400
... 170 more rows

Sheet Pv_Einbaugeräte
A1: Tabelle Einbaugeräte:
A3: Geräteart | B3: Hersteller | C3: Typ | D3: Bemerkung | E3: Bemessungsstrom des Gerätes In / A | F3: Verlustleistung des Gerätes pro Pol bei Bemessungsstrom in Watt | G3: maximale Verlustleistung der Sicherung bei Bemessungsstrom | H3: Verlustleistung pro Pol bei Bemessungsstrom PV / W Summe Spalte F + G
A4: NH-Sicherung NH 00C | B4: ABN | E4: 125 | F4: 9 | H4: 9
A5: NH-Sicherung NH 00 | B5: ABN | E5: 160 | F5: 12 | H5: 12
A6: NH-Sicherung NH 1 | B6: ABN | E6: 250 | F6: 23 | H6: 23
A7: NH-Sicherung NH 2 | B7: ABN | E7: 400 | F7: 34 | H7: 34
A8: NH-Sicherung NH 3 | B8: ABN | E8: 630 | F8: 48 | H8: 48
A9: Schraubsicherungssystem D 01/E14, einschl. Sicherung | B9: ABN | E9: 16 | F9: 2.2 | H9: 5
A10: Schraubsicherungssystem D 02/E18, einschl. Sicherung | B10: ABN | E10: 63 | F10: 5 | H10: 5
A11: Schraubsicherungssystem D II/E27, einschl. Sicherung | B11: ABN | E11: 25 | F11: 4 | H11: 4
A12: Schraubsicherungssystem D III/E33, einschl. Sicherung | B12: ABN | E12: 63 | F12: 7 | H12: 7
A13: Sicherungslasttrennschalter NH 00C, einschl. Sicherung | B13: ABN | E13: 125 | F13: 3.5 | G13: 6 | H13: =F13+G13 -> 9.5
A14: Sicherungslasttrennschalter NH 00, einschl. Sicherung | B14: ABN | E14: 160 | F14: 5 | G14: 12 | H14: 17
A15: Sicherungslasttrennschalter NH 1, einschl. Sicherung | B15: ABN | E15: 250 | F15: 8.6 | G15: 18 | H15: 26.6
A16: Sicherungslasttrennschalter NH 2, einschl. Sicherung | B16: ABN | E16: 400 | F16: 15 | G16: 28 | H16: 43
A17: Sicherungslasttrennschalter NH 3, einschl. Sicherung | B17: ABN | E17: 630 | F17: 20 | G17: 40 | H17: 60
A18: Sicherungsunterteil NH 00, einschl. Sicherung | B18: ABN | E18: 160 | F18: 4.6 | G18: 12 | H18: 16.6
A19: Sicherungsunterteil NH 1, einschl. Sicherung | B19: ABN | E19: 250 | F19: 7.3 | G19: 23 | H19: 30.3
A20: Sicherungsunterteil NH 2, einschl. Sicherung | B20: ABN | E20: 400 | F20: 18.6 | G20: 34 | H20: 52.6
A21: Lasttrennschalter (63 A) | B21: ABN | E21: 63 | F21: 2 | H21: 2
A22: Lasttrennschalter (100 A) | B22: ABN | E22: 100 | F22: 3 | H22: 3
A23: Lasttrennschalter (125 A) | B23: ABN | E23: 125 | F23: 1.8 | H23: 1.8
A24: Lasttrennschalter (160 A) | B24: ABN | E24: 160 | F24: 3 | H24: 3
A25: Lasttrennschalter (250 A) | B25: ABN | E25: 250 | F25: 5.8 | H25: 5.8
A26: Lasttrennschalter (400 A) | B26: ABN | E26: 400 | F26: 10.8 | H26: 10.8
A27: Lasttrennschalter (630 A) | B27: ABN | E27: 630 | F27: 30.9 | H27: 30.9
A28: Lasttrennumschalter (160 A) | B28: ABN | E28: 160 | F28: 3 | H28: 3
A29: Lasttrennumschalter (250 A) | B29: ABN | E29: 250 | F29: 5.8 | H29: 5.8
A30: Leistungsschalter (160 A) | B30: ABN | E30: 160 | F30: 13.95 | H30: 13.95
A31: Leistungsschalter (250 A) | B31: ABN | E31: 250 | F31: 18.75 | H31: 18.75
A32: Leistungsschalter (400 A) | B32: ABN | E32: 400 | F32: 19.2 | H32: 19.2
A33: Leistungsschalter (630 A) | B33: ABN | E33: 630 | F33: 39.69 | H33: 39.69
A35: Ausschalter 3-polig 63A | B35: ABN | E35: 63 | F35: 7.5
A36: Stromstoßschalter 16A 1S/1Ö | B36: ABN | E36: 16 | F36: 1.1
A37: Treppenlichtautomat 230V 16A | B37: ABN | E37: 16 | F37: 1
A38: Installationsschütz 16A 1-polig | B38: ABN | E38: 16 | F38: 1.8
A39: Installationsschütz 63A 3-polig | B39: ABN | E39: 63 | F39: 18
A40: Schaltuhr digital 4K 16A | B40: ABN | E40: 16 | F40: 6.6
A41: Zeitrelais | B41: ABN | E41: 16 | F41: 2.5
A42: Überspannungsableiter 5-polig | B42: ABN | E42: 250 | F42: 0
A43: Klingeltrafo 230V 2,5A | B43: ABN | E43: 2.5 | F43: 9
A45: SH-Schalter 35A | B45: ABN | E45: 35 | F45: 5.5
A46: SH-Schalter 50A | B46: ABN | E46: 50 | F46: 6
A47: SH-Schalter 63A | B47: ABN | E47: 63 | F47: 7
A49: Sammelschiene je 1m | B49: ABN | C49: 12x5 | D49: Delta T20 | E49: 250 | F49: 20.05
A50: Sammelschiene je 1m | B50: ABN | C50: 12x5 | D50: Delta T25 | E50: 250 | F50: 20.41
A51: Sammelschiene je 1m | B51: ABN | C51: 12x5 | D51: Delta T30 | E51: 250 | F51: 20.77
A53: Sammelschiene je 1m | B53: ABN | C53: 2x12x5 | D53: Delta T20 | E53: 250 | F53: 13.13
A54: Sammelschiene je 1m | B54: ABN | C54: 2x12x5 | D54: Delta T25 | E54: 250 | F54: 13.61
A55: Sammelschiene je 1m | B55: ABN | C55: 2x12x5 | D55: Delta T30 | E55: 250 | F55: 13.85
A57: Sammelschiene je 1m | B57: ABN | C57: 30x10 | D57: Delta T20 | E57: 400 | F57: 10.27
A58: Sammelschiene je 1m | B58: ABN | C58: 30x10 | D58: Delta T25 | E58: 400 | F58: 10.46
A59: Sammelschiene je 1m | B59: ABN | C59: 30x10 | D59: Delta T30 | E59: 400 | F59: 10.63
A61: Sammelschiene je 1m | B61: ABN | C61: 40x10 | D61: Delta T20 | E61: 250 | F61: 19.1
A62: Sammelschiene je 1m | B62: ABN | C62: 40x10 | D62: Delta T25 | E62: 400 | F62: 19.43
A63: Sammelschiene je 1m | B63: ABN | C63: 40x10 | D63: Delta T30 | E63: 630 | F63: 19.8
A65: FI/LS | B65: Doepke | C65: FI/LS
A66: RCBO 1+N, B-Charakteristik | B66: Doepke | E66: 6 | F66: 1.7
B67: Doepke | E67: 10 | F67: 2.3
B68: Doepke | E68: 13 | F68: 3.4
B69: Doepke | E69: 16 | F69: 3.6
B70: Doepke | E70: 20 | F70: 5.4
B71: Doepke | E71: 25 | F71: 5
B72: Doepke | E72: 32 | F72: 6.1
B73: Doepke | E73: 40 | F73: 8.2
A75: FI/LS | B75: Doepke | C75: FI/LS
A76: RCBO 1+N, C-Charakteristik | B76: Doepke | E76: 6 | F76: 1.7
B77: Doepke | E77: 10 | F77: 2.3
B78: Doepke | E78: 13 | F78: 3.4
B79: Doepke | E79: 16 | F79: 3.6
B80: Doepke | E80: 20 | F80: 5.4
B81: Doepke | E81: 25 | F81: 5
B82: Doepke | E82: 32 | F82: 6.1
B83: Doepke | E83: 40 | F83: 8.2
A85: FI/LS | B85: Doepke | C85: FI/LS | E85: 6 | F85: 2.1
A86: RCBO 1+N Typ B, 3+N Typ A/B, B-Charakteristik | B86: Doepke | E86: 10 | F86: 2.2
B87: Doepke | E87: 13 | F87: 2.8
B88: Doepke | E88: 16 | F88: 2.3
B89: Doepke | E89: 20 | F89: 3.1
B90: Doepke | E90: 25 | F90: 4.3
B91: Doepke | E91: 32 | F91: 5.1
B92: Doepke | E92: 40 | F92: 6.5
A94: FI - DFS 2/4 30 mA-1000 mA | B94: Doepke | C94: FI
A95: Standard | B95: Doepke | C95: DFS2 | E95: 16 | F95: 0.18
A96: Standard | B96: Doepke | C96: DFS2 | E96: 25 | F96: 0.45
A97: Standard | B97: Doepke | C97: DFS2 | E97: 40 | F97: 1.1
A98: Standard | B98: Doepke | C98: DFS2 | E98: 63 | F98: 2.8
A99: Standard | B99: Doepke | C99: DFS2 | E99: 80 | F99: 4
A100: Standard | B100: Doepke | C100: DFS2 | E100: 100 | F100: 6
A101: Standard | B101: Doepke | C101: DFS2 | E101: 125 | F101: 10
A103: allstromsensitiv | B103: Doepke | C103: DFS4 | E103: 16 | F103: 0.2
A104: allstromsensitiv | B104: Doepke | C104: DFS4 | E104: 25 | F104: 0.5
A105: allstromsensitiv | B105: Doepke | C105: DFS4 | E105: 40 | F105: 1.3
A106: allstromsensitiv | B106: Doepke | C106: DFS4 | E106: 63 | F106: 3.1
A107: allstromsensitiv | B107: Doepke | C107: DFS4 | E107: 80 | F107: 5
A108: allstromsensitiv | B108: Doepke | C108: DFS4 | E108: 100 | F108: 7.5
A109: allstromsensitiv | B109: Doepke | C109: DFS4 | E109: 125 | F109: 11.2
A111: FI - DFS 2/4 10 mA | B111: Doepke
A112: Standard | B112: Doepke | C112: DFS2 | E112: 16 | F112: 1.2
A113: Standard | B113: Doepke | C113: DFS2 | E113: 25 | F113: 3
A114: Standard | B114: Doepke | C114: DFS2 | E114: 40 | F114: 7.5
A116: allstromsensitiv | B116: Doepke | C116: DFS4 | E116: 16 | F116: 1.4
A117: allstromsensitiv | B117: Doepke | C117: DFS4 | E117: 25 | F117: 3.2
A118: allstromsensitiv | B118: Doepke | C118: DFS4 | E118: 40 | F118: –
A120: Leitungsschutzschalter | B120: Doepke
A121: DLS 6 B/C/D/K-Charakteristik
A122: B-Charakteristik | B122: Doepke | C122: LS | E122: 1 | F122: -
A123: B-Charakteristik | B123: Doepke | E123: 2 | F123: 2
A124: B-Charakteristik | B124: Doepke | E124: 3 | F124: 1.9
A125: B-Charakteristik | B125: Doepke | E125: 4 | F125: 2.1
A126: B-Charakteristik | B126: Doepke | E126: 6 | F126: 1.9
A127: B-Charakteristik | B127: Doepke | E127: 8 | F127: -
A128: B-Charakteristik | B128: Doepke | E128: 10 | F128: 1.3
A129: B-Charakteristik | B129: Doepke | E129: 13 | F129: 1.9
A130: B-Charakteristik | B130: Doepke | E130: 16 | F130: 2.1
A131: B-Charakteristik | B131: Doepke | E131: 20 | F131: 2.8
A132: B-Charakteristik | B132: Doepke | E132: 25 | F132: 3.1
A133: B-Charakteristik | B133: Doepke | E133: 32 | F133: 3.7
A134: B-Charakteristik | B134: Doepke | E134: 40 | F134: 3.5
A135: B-Charakteristik | B135: Doepke | E135: 50 | F135: 4.9
B136: Doepke | E136: 63 | F136: 7
A138: C-Charakteristik | B138: Doepke | C138: LS | E138: 1 | F138: 1.8
A139: C-Charakteristik | B139: Doepke | E139: 2 | F139: 1.7
A140: C-Charakteristik | B140: Doepke | E140: 3 | F140: 1.8
A141: C-Charakteristik | B141: Doepke | E141: 4 | F141: 1.7
A142: C-Charakteristik | B142: Doepke | E142: 6 | F142: 1.8
A143: C-Charakteristik | B143: Doepke | E143: 8 | F143: 1.5
A144: C-Charakteristik | B144: Doepke | E144: 10 | F144: 1.3
A145: C-Charakteristik | B145: Doepke | E145: 13 | F145: 1.4
A146: C-Charakteristik | B146: Doepke | E146: 16 | F146: 2.1
A147: C-Charakteristik | B147: Doepke | E147: 20 | F147: 3
A148: C-Charakteristik | B148: Doepke | E148: 25 | F148: 3.1
A149: C-Charakteristik | B149: Doepke | E149: 32 | F149: 3.7
A150: C-Charakteristik | B150: Doepke | E150: 40 | F150: 3.5
A151: C-Charakteristik | B151: Doepke | E151: 50 | F151: 4.8
A152: C-Charakteristik | B152: Doepke | E152: 63 | F152: 7
A154: D-Charakteristik | B154: Doepke | E154: 1 | F154: -
A155: D-Charakteristik | B155: Doepke | E155: 2 | F155: -
A156: D-Charakteristik | B156: Doepke | E156: 3 | F156: -
A157: D-Charakteristik | B157: Doepke | E157: 4 | F157: 1.7
A158: D-Charakteristik | B158: Doepke | E158: 6 | F158: 1.7
A159: D-Charakteristik | B159: Doepke | E159: 8 | F159: 1.3
A160: D-Charakteristik | B160: Doepke | E160: 10 | F160: 1.3
A161: D-Charakteristik | B161: Doepke | E161: 13 | F161: 1.4
A162: D-Charakteristik | B162: Doepke | E162: 16 | F162: 2.1
A163: D-Charakteristik | B163: Doepke | E163: 20 | F163: 2.5
A164: D-Charakteristik | B164: Doepke | E164: 25 | F164: 2.5
A165: D-Charakteristik | B165: Doepke | E165: 32 | F165: 2.8
A166: D-Charakteristik | B166: Doepke | E166: 40 | F166: 3.5
A167: D-Charakteristik | B167: Doepke | E167: 50 | F167: 4.6
A168: D-Charakteristik | B168: Doepke | E168: 63 | F168: 6.8
A170: K-Charakteristik | B170: Doepke | E170: 1 | F170: -
A171: K-Charakteristik | B171: Doepke | E171: 2 | F171: 1.7
A172: K-Charakteristik | B172: Doepke | E172: 3 | F172: -
A173: K-Charakteristik | B173: Doepke | E173: 4 | F173: 1.7
A174: K-Charakteristik | B174: Doepke | E174: 6 | F174: 1.8
A175: K-Charakteristik | B175: Doepke | E175: 8 | F175: 2.8
A176: K-Charakteristik | B176: Doepke | E176: 10 | F176: 3.1
A177: K-Charakteristik | B177: Doepke | E177: 13 | F177: 1.5
A178: K-Charakteristik | B178: Doepke | E178: 16 | F178: 1.9
A179: K-Charakteristik | B179: Doepke | E179: 20 | F179: 2.5
A180: K-Charakteristik | B180: Doepke | E180: 25 | F180: 2.9
A181: K-Charakteristik | B181: Doepke | E181: 32 | F181: 2.9
A182: K-Charakteristik | B182: Doepke | E182: 40 | F182: 3.5
A183: K-Charakteristik | B183: Doepke | E183: 50 | F183: 4.9
A184: K-Charakteristik | B184: Doepke | E184: 63 | F184: 7

Sheet Legende
A2: Legende:
B3: Die Derating-Kurve beschreibt die maximale zulässige Verlustleistung eines elektrischen oder elektronischen Bauteiles in Abhängigkeit von seiner Umgebungstemperatur.
B4: In der Praxis wird die Leistungsreduktion und damit die Berücksichtigung der Derating-Kurve oft nicht vom Bauteil oder Gerät selbst vorgenommen, sondern ist Aufgabe des Benutzers, sofern sie nicht bereits bei der Entwicklung des Gesamtproduktes berücksichtigt wurde.
B6: RDF = Bemessungsbelastungsfaktor Unter der Voraussetzung, dass die Belastung der Einspeisung deren Bemessungsstrom nicht überschreitet, ist der Belastungsfaktor der Anteil der jeweiligen Bemessungsströme, den jede Kombination von abgehenden Stromkreisen gleichzeitig und dauerhaft führen kann, ohne die Schaltgerätekombination zu überlasten.
B10: Festlegung: Betriebsbedingungen
B30: Sammelschienen Verluste für 3-poliges System
